bitfinex/quotes_SOLUSD_20250522
["timestamp","ask_amount","ask_price","bid_price","bid_amount"]
[1747951266908,19.50962311,178.42,178.37,61.54]
[1747951267307,19.50962311,178.41,178.37,61.54]
[1747951267606,19.50962311,178.39,178.32,7.5267]
[1747951267797,19.50962311,178.37,178.32,7.5267]
[1747951268005,5.60663825,178.36,178.35,26.0]
[1747951268391,5.60663825,178.36,178.32,7.5267]
[1747951268804,5.60663825,178.36,178.35,26.0]
[1747951269808,0.14216157,178.41,178.35,26.0]
[1747951270005,19.50962311,178.39,178.35,26.0]
[1747951271208,19.50962311,178.38,178.35,26.0]
[1747951271393,5.60632393,178.37,178.35,26.0]
[1747951273409,5.60600964,178.38,178.35,26.0]
[1747951281004,19.61883407,178.4,178.35,26.0]
[1747951281313,39.12845718,178.4,178.35,26.0]
[1747951281512,19.50962311,178.39,178.35,26.0]
[1747951283212,19.61883407,178.4,178.35,26.0]
[1747951283517,39.12845718,178.4,178.35,26.0]
[1747951284515,19.61883407,178.4,178.35,26.0]
[1747951284719,39.12845718,178.4,178.35,26.0]
[1747951286818,5.60538116,178.4,178.35,26.0]
[1747951287013,25.11500427,178.4,178.35,26.0]
[1747951288213,5.60538116,178.4,178.36,26.0]
[1747951289315,25.11469009,178.41,178.37,26.0]
[1747951290817,19.50962311,178.42,178.37,26.0]
[1747951291400,14.01169888,178.43,178.35,26.0]
[1747951291401,19.50962311,178.4,178.35,26.0]
[1747951291921,19.50962311,178.39,178.32,43.0467]
[1747951292092,19.50962311,178.39,178.35,26.0]
[1747951293322,5.60600964,178.38,178.35,26.0]
[1747951294327,5.60569538,178.39,178.35,26.0]
[1747951296524,19.61834745,178.41,178.35,26.0]
[1747951296725,19.50962311,178.4,178.35,26.0]
[1747951297607,39.12797056,178.41,178.35,26.0]
[1747951298828,19.61834745,178.41,178.35,26.0]
[1747951299022,19.50962311,178.4,178.35,26.0]
[1747951299825,19.50962311,178.37,178.35,26.0]
[1747951300125,19.50962311,178.36,178.3,26.0]
[1747951300323,19.50962311,178.33,178.28,1.635]
[1747951300522,19.50962311,178.33,178.3,26.0]
[1747951300824,5.60789591,178.32,178.28,1.635]
[1747951301328,5.60789591,178.32,178.3,26.0]
[1747951301329,25.11751902,178.32,178.3,26.0]
[1747951302525,25.11751902,178.32,178.27,6.4475]
[1747951302933,25.11751902,178.32,178.27,32.4475]
[1747951303516,19.50962311,178.31,178.27,26.0]
[1747951304338,19.50962311,178.3,178.27,26.0]
[1747951304512,19.50962311,178.28,178.2,1.6194]
[1747951304717,19.50962311,178.28,178.18,47.71728339]
[1747951304718,19.50962311,178.25,178.18,42.105]
[1747951304911,19.50962311,178.23,178.18,42.105]
[1747951305229,19.50962311,178.23,178.16,9.63558523]
[1747951305403,19.50962311,178.23,178.17,26.0]
[1747951305404,5.61104253,178.22,178.17,26.0]
[1747951305605,25.12066564,178.22,178.17,26.0]
[1747951306204,19.50962311,178.2,178.17,26.0]
[1747951306418,19.50962311,178.18,178.13,35.54]
[1747951306611,19.50962311,178.17,178.14,26.0]
[1747951307130,19.50962311,178.17,178.11,9.86873333]
[1747951307433,19.50962311,178.17,178.14,26.0]
[1747951307637,5.61293219,178.16,178.14,26.0]
[1747951307947,5.61293219,178.16,178.11,8.33333333]
[1747951307948,0.14216157,178.14,178.11,8.33333333]
[1747951308142,19.65178468,178.12,178.11,8.33333333]
[1747951308341,19.79394625,178.12,178.11,8.33333333]
[1747951308646,64.44359511,178.12,178.11,8.33333333]
[1747951309006,100.00359511,178.12,178.11,8.33333333]
[1747951309445,64.44359511,178.12,178.11,8.33333333]
[1747951309648,103.67778778,178.12,178.11,8.33333333]
[1747951310033,0.28432314,178.11,178.01,26.0]
[1747951310227,19.50962311,178.04,178.01,26.0]
[1747951310929,19.50962311,178.05,178.01,26.0]
[1747951311324,19.50962311,178.04,178.01,26.0]
[1747951312228,19.50962311,178.05,178.01,26.0]
[1747951312621,25.12631296,178.05,177.99,26.0]
[1747951313443,0.14216157,178.06,177.99,26.0]
[1747951313637,0.28432314,178.1,178.01,26.0]
[1747951313941,19.50962311,178.07,178.01,26.0]
[1747951314139,5.89914627,178.1,178.01,26.0]
[1747951314346,0.14216157,178.06,178.01,26.0]
[1747951314531,19.50962311,178.05,178.01,26.0]
[1747951315831,25.12606459,178.05,178.01,26.0]
[1747951318158,16.79273126,178.05,178.01,26.0]
[1747951319768,5.61644148,178.05,178.01,26.0]
[1747951320499,0.14216157,178.11,178.01,31.61750798]
[1747951320633,25.26629256,178.11,178.01,31.61750798]
[1747951320832,5.75666945,178.11,178.01,31.61750798]
[1747951321033,0.14216157,178.11,178.01,31.61750798]
[1747951321330,25.12353636,178.13,178.05,26.0]
[1747951321530,5.75577661,178.14,178.05,26.0]
[1747951321771,5.61314055,178.16,178.09,26.0]
[1747951321968,15.5756233,178.22,178.11,26.0]
[1747951322133,19.50962311,178.2,178.11,26.0]
[1747951322465,0.14216157,178.19,178.11,26.0]
[1747951322769,19.65178468,178.19,178.11,26.0]
[1747951323267,25.26401066,178.19,178.12,5.61419267]
[1747951323569,19.65178468,178.19,178.12,5.61419267]
[1747951323856,19.50962311,178.2,178.15,26.0]
[1747951324050,52.30964886,178.24,178.15,26.0]
[1747951324051,19.65178468,178.21,178.15,26.0]
[1747951325040,19.65178468,178.21,178.14,5.61341177]
[1747951325449,19.65178468,178.21,178.13,26.0]
[1747951325450,19.50962311,178.2,178.13,26.0]
[1747951325651,19.50962311,178.19,178.13,26.0]
[1747951326766,25.12168997,178.19,178.15,26.0]
[1747951326958,5.61206686,178.19,178.15,26.0]
[1747951327347,19.50962311,178.16,178.1,35.8]
[1747951327558,0.14216157,178.18,178.07,5.61572107]
[1747951327559,19.50962311,178.15,178.07,5.61572107]
[1747951327762,0.14216157,178.18,178.07,5.61572107]
[1747951327948,19.50962311,178.17,178.1,26.0]
[1747951328462,19.65178468,178.18,178.1,26.0]
[1747951329263,5.61261716,178.17,178.1,26.0]
[1747951329468,25.12224027,178.17,178.1,26.0]
[1747951330847,25.12224027,178.17,178.1,31.61468709]
[1747951331166,0.14216157,178.2,178.1,31.61468709]
[1747951331167,19.50962311,178.2,178.1,31.61468709]
[1747951331467,5.61188624,178.2,178.1,45.65174492]
[1747951331669,19.65178468,178.24,178.18,26.0]
[1747951331872,19.50962311,178.23,178.18,26.0]
[1747951332044,5.61041292,178.24,178.18,26.0]
[1747951332245,0.14216157,178.3,178.18,26.0]
[1747951332443,0.14216157,178.3,178.22,26.0]
[1747951332444,19.65178468,178.3,178.22,26.0]
[1747951333080,19.50962311,178.25,178.21,26.0]
[1747951333266,0.14216157,178.23,178.15,7.7123]
[1747951333466,19.50962311,178.21,178.15,7.7123]
[1747951333770,19.50962311,178.18,178.11,1.5254]
[1747951333974,0.14216157,178.2,178.08,35.78]
[1747951334145,19.50962311,178.14,178.08,35.78]
[1747951334347,0.14216157,178.11,178.06,7.8424]
[1747951334585,19.50962311,178.12,178.02,251.43726464]
[1747951334586,19.50962311,178.09,178.02,42.303]
[1747951335176,0.14216157,178.12,178.05,26.0]
[1747951335177,19.50962311,178.1,178.05,26.0]
[1747951335675,5.61513841,178.09,178.02,47.92030401]
[1747951335976,5.61513841,178.09,178.05,26.0]
[1747951336151,5.61513841,178.09,178.02,47.92030401]
[1747951336352,30.71863217,178.1,178.02,47.92030401]
[1747951336548,5.61418096,178.13,178.05,26.0]
[1747951336777,36.33281313,178.13,178.05,26.0]
[1747951337051,5.61418096,178.13,178.05,26.0]
[1747951337382,30.71863217,178.12,178.05,26.0]
[1747951337678,30.71863217,178.11,178.07,26.0]
[1747951337882,30.71863217,178.1,178.07,26.0]
[1747951338086,30.71863217,178.1,178.02,42.303]
[1747951338284,30.71863217,178.09,178.05,26.0]
[1747951339465,30.71863217,178.1,178.05,26.0]
[1747951339791,36.33356638,178.1,178.05,26.0]
[1747951341184,30.71863217,178.11,178.06,26.0]
[1747951341377,36.33311083,178.12,178.06,26.0]
[1747951341579,0.14216157,178.13,178.06,26.0]
[1747951341580,5.61392516,178.13,178.06,26.0]
[1747951341800,36.33219453,178.14,178.07,5.61576907]
[1747951342000,30.71863217,178.13,178.07,5.61576907]
[1747951343594,30.71863217,178.08,178.02,6.523]
[1747951343758,49.5104426,178.09,177.97,13.46438812]
[1747951343759,30.71863217,178.04,177.97,13.46438812]
[1747951343967,0.28432314,178.07,178.0,26.0]
[1747951344274,30.71863217,178.05,178.0,26.0]
[1747951344681,30.71863217,178.03,177.97,7.8455]
[1747951344857,36.33629409,178.01,177.97,1.5544]
[1747951345056,33.66,178.06,177.97,7.17330858]
[1747951345386,33.66,178.06,177.97,33.17330858]
[1747951345387,30.71863217,178.04,177.97,33.17330858]
[1747951345567,14.03720705,178.1,178.0,26.0]
[1747951345771,30.71863217,178.08,178.0,26.0]
[1747951345976,0.14216157,178.09,178.0,26.0]
[1747951345977,5.61513841,178.09,178.0,26.0]
[1747951346364,36.33377058,178.09,178.0,26.0]
[1747951346565,22.04037109,178.13,178.01,6.4941]
[1747951346765,30.71863217,178.12,178.02,26.0]
[1747951346960,36.33282484,178.12,178.03,5.61703083]
[1747951347487,5.61419267,178.12,178.03,5.61703083]
[1747951347668,36.33282484,178.12,178.03,5.61703083]
[1747951349287,30.71863217,178.08,178.02,26.0]
[1747951349463,30.71863217,178.09,178.02,26.0]
[1747951350367,36.33282484,178.12,178.02,31.61734094]
[1747951350779,30.71863217,178.11,178.02,31.61734094]
[1747951351183,36.33327888,178.11,178.02,31.61734094]
[1747951351997,5.61464671,178.11,178.02,31.61734094]
[1747951352290,30.71863217,178.11,178.02,31.61734094]
[1747951352675,36.33282484,178.12,178.02,31.61734094]
[1747951352874,19.64416006,178.17,178.06,26.0]
[1747951353063,5.61261716,178.17,178.06,26.0]
[1747951353262,36.33124933,178.17,178.06,62.26]
[1747951353571,5.61261716,178.17,178.12,26.0]
[1747951353971,5.61237628,178.18,178.12,26.0]
[1747951354178,36.33187943,178.15,178.09,6.2223]
[1747951354392,30.71863217,178.13,178.09,26.0]
[1747951354581,30.71863217,178.11,178.08,26.0]
[1747951354989,30.86079374,178.1,178.03,1.5749]
[1747951355207,30.71863217,178.09,178.03,1.5749]
[1747951355507,30.71863217,178.08,178.04,26.0]
[1747951356286,5.61576907,178.07,178.04,26.0]
[1747951357105,36.33410216,178.08,178.04,26.0]
[1747951357279,14.03568326,178.12,178.04,26.0]
[1747951357280,36.33385639,178.09,178.04,26.0]
[1747951358293,30.71863217,178.08,178.04,26.0]
[1747951358615,5.61576907,178.07,178.04,26.0]
[1747951360689,33.80216157,178.12,178.04,26.0]
[1747951360690,5.61450788,178.11,178.04,26.0]
[1747951360905,36.33314005,178.11,178.05,26.0]
[1747951361279,50.36940977,178.11,178.05,26.0]
[1747951361501,30.71863217,178.09,178.05,26.0]
[1747951361707,30.86079374,178.1,178.05,26.0]
[1747951361906,5.61513841,178.09,178.05,26.0]
[1747951364212,5.61482313,178.1,178.05,26.0]
[1747951365212,5.61482313,178.1,178.06,26.0]
[1747951365998,14.17646444,178.14,178.01,42.4528]
[1747951365999,34.73168347,178.19,178.1,26.0]
[1747951366200,5.61230216,178.18,178.1,26.0]
[1747951366512,28.11889698,178.18,178.1,26.0]
[1747951366708,22.50659482,178.15,178.09,6.0145]
[1747951366888,22.50659482,178.15,178.07,43.47419796]
[1747951366889,22.50659482,178.15,178.1,26.0]
[1747951367090,22.50659482,178.14,178.1,26.0]
[1747951367309,22.51679776,178.15,178.1,26.0]
[1747951367612,0.14216157,178.16,178.1,26.0]
[1747951367910,22.51679776,178.15,178.1,26.0]
[1747951368288,5.61356236,178.14,178.1,26.0]
[1747951368789,42.16426603,178.14,178.1,26.0]
[1747951369184,19.64746827,178.14,178.1,26.0]
[1747951372822,5.61356236,178.14,178.1,26.0]
[1747951373114,5.61293219,178.16,178.1,26.0]
[1747951374997,5.61293219,178.16,178.1,31.61479734]
[1747951375196,5.61293219,178.16,178.1,26.0]
[1747951376917,5.61293219,178.16,178.12,26.0]
[1747951378212,5.61293219,178.16,178.1,31.61475176]
[1747951380018,5.61230216,178.18,178.1,31.61475176]
[1747951381225,19.64305757,178.18,178.12,26.0]
[1747951381598,5.61230216,178.18,178.12,26.0]
[1747951383430,5.61167227,178.2,178.12,6.6607]
[1747951384125,37.6730513,178.25,178.12,6.6607]
[1747951384126,2.8358146,178.33,178.18,0.14216157]
[1747951384346,17.44682921,178.35,178.23,0.14216157]
[1747951384503,34.18450293,178.36,178.27,26.0]
[1747951384842,15.21147946,178.48,178.34,26.0]
[1747951385016,4.49162713,178.5,178.35,102.5032]
[1747951385197,22.50735028,178.54,178.44,26.0]
[1747951385535,24.10435028,178.53,178.45,70.02]
[1747951385704,5.60167093,178.52,178.45,70.02]
[1747951386233,42.10970256,178.55,178.41,26.0]
[1747951386419,19.60235228,178.55,178.46,70.02]
[1747951386614,0.14216157,178.54,178.47,36.36]
[1747951386815,0.14216157,178.54,178.41,26.0]
[1747951387028,22.64951185,178.54,178.45,26.0]
[1747951387233,19.60235228,178.55,178.45,26.0]
[1747951387234,5.6012995,178.53,178.45,26.0]
[1747951387532,18.933972,178.52,178.46,33.66]
[1747951387729,41.44132228,178.52,178.46,33.66]
[1747951388083,18.64964886,178.51,178.46,33.66]
[1747951388205,0.28432314,178.5,178.46,33.66]
[1747951389434,5.60255476,178.49,178.46,33.66]
[1747951390911,18.79181043,178.48,178.46,34.16]
[1747951391109,5.60255476,178.49,178.46,34.16]
[1747951393438,5.60255476,178.49,178.46,0.5]
[1747951393665,5.60255476,178.49,178.38,215.58593874]
[1747951393666,18.79181043,178.46,178.44,69.94]
[1747951393953,18.79181043,178.46,178.38,209.98]
[1747951394148,18.79181043,178.46,178.42,69.92]
[1747951394456,18.79181043,178.46,178.41,26.0]
[1747951394667,18.79181043,178.46,178.42,69.9]
[1747951394840,18.79181043,178.46,178.41,26.0]
[1747951395043,18.79181043,178.46,178.42,33.6]
[1747951395650,0.14216157,178.44,178.42,33.6]
[1747951395854,5.74597216,178.45,178.42,69.9]
[1747951396440,5.60381059,178.45,178.42,69.9]
[1747951396646,5.60381059,178.45,178.44,26.0]
[1747951396855,5.6031826,178.47,178.44,26.0]
[1747951397571,5.6031826,178.47,178.38,209.98]
[1747951397572,5.6031826,178.47,178.45,69.9]
[1747951397748,5.6031826,178.47,178.41,26.0]
[1747951397949,0.28432314,178.46,178.42,69.9]
[1747951398482,0.28432314,178.42,178.29,18.64964886]
[1747951398770,0.28432314,178.42,178.3,70.46055819]
[1747951398941,0.28432314,178.42,178.33,26.0]
[1747951399637,5.60506698,178.41,178.34,26.0]
[1747951399838,5.60506698,178.41,178.38,26.0]
[1747951400043,19.61773443,178.41,178.37,36.3]
[1747951400274,19.61773443,178.41,178.28,6.4183]
[1747951400275,22.50735028,178.39,178.28,6.4183]
[1747951400443,22.50735028,178.36,178.27,2.86687877]
[1747951400640,22.79167342,178.35,178.27,69.9]
[1747951400843,0.28432314,178.35,178.28,26.0]
[1747951401043,0.14216157,178.35,178.28,26.0]
[1747951401459,0.28432314,178.37,178.28,26.0]
[1747951401770,0.28432314,178.35,178.28,26.0]
[1747951402473,0.28432314,178.35,178.27,69.9]
[1747951402675,0.28432314,178.35,178.28,26.0]
[1747951403047,0.28432314,178.35,178.3,26.0]
[1747951403673,5.60726701,178.34,178.3,26.0]
[1747951403879,0.14216157,178.39,178.3,26.0]
[1747951404083,22.79167342,178.39,178.3,26.0]
[1747951404575,22.79167342,178.39,178.3,31.60852096]
[1747951405272,22.79167342,178.39,178.32,26.0]
[1747951406181,5.60600964,178.38,178.31,26.0]
[1747951406362,5.60600964,178.38,178.32,33.6]
[1747951408091,0.14216157,178.37,178.32,33.6]
[1747951409677,5.60663825,178.36,178.32,33.6]
[1747951412562,5.60663825,178.36,178.3,26.0]
[1747951412782,5.60663825,178.36,178.28,71.12]
[1747951412783,0.14216157,178.35,178.28,71.12]
[1747951412985,0.28432314,178.35,178.28,37.52]
[1747951413167,22.64951185,178.35,178.28,37.52]
[1747951413488,0.14216157,178.33,178.23,228.06587257]
[1747951413685,5.60852495,178.3,178.23,287.1983]
[1747951413900,5.60852495,178.3,178.26,26.0]
[1747951414264,5.60852495,178.3,178.23,287.1983]
[1747951414562,5.60852495,178.3,178.26,26.0]
[1747951415772,5.60821042,178.31,178.26,26.0]
[1747951418392,0.14216157,178.3,178.26,26.0]
[1747951418564,0.14216157,178.3,178.24,26.0]
[1747951420406,5.60883953,178.29,178.24,26.0]
[1747951424083,19.63093835,178.29,178.24,26.0]
[1747951424306,19.63093835,178.29,178.23,37.52]
[1747951424479,5.60883953,178.29,178.23,37.52]
[1747951426375,28.11618981,178.29,178.23,37.52]
[1747951427599,5.60883953,178.29,178.23,37.52]
[1747951428373,5.60883953,178.29,178.24,2.06953702]
[1747951428997,5.60883953,178.29,178.25,3.18598554]
[1747951429491,36.528588,178.31,178.25,3.18598554]
[1747951429492,5.75068652,178.3,178.25,3.18598554]
[1747951430586,5.75068652,178.3,178.23,37.52]
[1747951431102,5.75068652,178.3,178.24,2.0714467]
[1747951431874,5.75068652,178.3,178.25,2.0714467]
[1747951432283,5.75068652,178.3,178.24,2.0714467]
[1747951433805,19.77199891,178.3,178.24,2.0714467]
[1747951438213,19.77199891,178.3,178.23,37.52]
[1747951438908,19.77199891,178.3,178.24,2.07681182]
[1747951439900,19.77199891,178.3,178.25,2.07681182]
[1747951440588,19.77199891,178.3,178.24,2.07681182]
[1747951441723,5.60663825,178.36,178.26,18.64964886]
[1747951442007,5.60663825,178.36,178.27,33.62]
[1747951442194,5.60663825,178.36,178.27,35.69681182]
[1747951442811,5.60663825,178.36,178.28,2.07681182]
[1747951442992,7.25573424,178.37,178.29,42.76883953]
[1747951443398,7.25573424,178.37,178.3,2.07681182]
[1747951444008,5.60538116,178.4,178.3,2.07681182]
[1747951444218,5.60538116,178.4,178.31,20.72646068]
[1747951444395,5.60538116,178.4,178.32,33.62]
[1747951444584,27.6666,178.41,178.32,33.62]
[1747951444585,7.27170477,178.41,178.32,33.62]
[1747951444784,7.27170477,178.41,178.33,2.07681182]
[1747951445007,7.27170477,178.41,178.34,5.60726701]
[1747951445596,7.27170477,178.41,178.35,28.07681182]
[1747951446204,7.27170477,178.41,178.36,2.07681182]
[1747951447106,14.26213691,178.44,178.36,7.68340027]
[1747951447307,14.26213691,178.45,178.36,33.68340027]
[1747951447517,0.14216157,178.44,178.36,33.68340027]
[1747951448142,0.14216157,178.44,178.37,2.07681182]
[1747951448309,5.60443871,178.43,178.37,2.07681182]
[1747951449514,5.60412463,178.44,178.39,26.0]
[1747951450413,5.60412463,178.44,178.4,28.07681182]
[1747951451020,5.60412463,178.44,178.4,26.0]
[1747951452499,7.15187876,178.46,178.39,5.60542747]
[1747951452818,7.15187876,178.46,178.4,2.07250668]
[1747951453711,7.15187876,178.46,178.39,5.60542747]
[1747951454429,7.15187876,178.46,178.4,7.4]
[1747951454813,7.15187876,178.46,178.39,5.60542747]
[1747951455312,7.15187876,178.46,178.4,2.07052873]
[1747951456022,7.15187876,178.46,178.39,5.60542747]
[1747951458997,0.14216157,178.47,178.39,5.60542747]
[1747951459298,5.74503023,178.48,178.39,5.60542747]
[1747951459507,5.74503023,178.48,178.42,26.0]
[1747951460245,0.14216157,178.46,178.4,7.4]
[1747951460395,0.14216157,178.46,178.4,26.0]
[1747951460396,14.26213691,178.44,178.4,26.0]
[1747951460595,14.26213691,178.42,178.33,70.74]
[1747951460790,14.26213691,178.41,178.33,70.74]
[1747951461015,5.60538116,178.4,178.32,6.2173]
[1747951461229,14.26213691,178.36,178.3,8.61670163]
[1747951461407,0.14216157,178.38,178.3,8.61670163]
[1747951461408,0.14216157,178.34,178.3,8.61670163]
[1747951461728,14.26213691,178.33,178.3,8.61670163]
[1747951461903,14.40429848,178.32,178.3,8.61670163]
[1747951462593,14.40429848,178.32,178.27,26.0]
[1747951462793,14.40429848,178.33,178.27,26.0]
[1747951463726,5.60789591,178.32,178.27,26.0]
[1747951466121,0.14216157,178.31,178.27,26.0]
[1747951466310,14.40429848,178.31,178.27,26.0]
[1747951466513,14.26213691,178.3,178.23,37.14]
[1747951466712,14.26213691,178.3,178.24,26.0]
[1747951467832,14.40429848,178.31,178.24,26.0]
[1747951468035,5.60852495,178.3,178.24,26.0]
[1747951468410,5.60852495,178.3,178.23,37.14]
[1747951469931,5.60852495,178.3,178.23,42.75063315]
[1747951470250,5.60852495,178.3,178.23,37.14]
[1747951470450,5.60852495,178.3,178.23,42.75064979]
[1747951470607,31.60819642,178.32,178.23,42.75064979]
[1747951470807,5.60819642,178.32,178.23,42.75064979]
[1747951471348,5.60819642,178.32,178.24,2.07089251]
[1747951471730,5.60819642,178.32,178.24,7.68123069]
[1747951471906,5.60819642,178.32,178.24,5.61033818]
[1747951472426,27.6611,178.34,178.25,18.64964886]
[1747951472641,29.77951302,178.38,178.26,26.0]
[1747951472812,5.60632393,178.37,178.27,58.67394886]
[1747951473334,5.60632393,178.37,178.28,2.07077453]
[1747951473538,5.60632393,178.37,178.29,36.86]
[1747951473829,5.60632393,178.37,178.3,5.60852495]
[1747951474139,1.5021,178.38,178.3,5.60852495]
[1747951474305,7.10813356,178.38,178.3,5.60852495]
[1747951474507,1.5021,178.38,178.31,18.64964886]
[1747951475418,1.5021,178.38,178.32,5.60789591]
[1747951475807,5.6057726,178.39,178.32,5.60789591]
[1747951476538,5.60538116,178.4,178.32,5.60789591]
[1747951477111,5.60538116,178.4,178.33,2.06885909]
[1747951477415,5.60515843,178.41,178.33,35.68885909]
[1747951477601,1.5284,178.42,178.34,18.64964886]
[1747951477806,1.5284,178.42,178.35,36.86]
[1747951478207,5.60436389,178.44,178.36,18.64964886]
[1747951478614,5.60381059,178.45,178.37,5.60632393]
[1747951479535,33.87547397,178.45,178.35,42.46677086]
[1747951479836,33.87547397,178.45,178.36,2.06812203]
[1747951480039,14.26213691,178.43,178.36,2.06812203]
[1747951480244,40.26213691,178.43,178.34,70.48]
[1747951480616,5.60475283,178.42,178.34,70.48]
[1747951483337,19.6166349,178.42,178.34,70.48]
[1747951483527,14.26213691,178.39,178.34,36.86]
[1747951483841,14.26213691,178.37,178.3,33.6]
[1747951484335,14.26213691,178.37,178.31,2.0717345]
[1747951484642,14.26213691,178.36,178.31,2.0717345]
[1747951484812,0.14216157,178.35,178.31,2.0717345]
[1747951485011,5.60789591,178.32,178.25,70.46]
[1747951485313,19.6276357,178.32,178.25,70.46]
[1747951485519,33.88977261,178.32,178.25,36.86]
[1747951487039,5.60789591,178.32,178.25,36.86]
[1747951487340,5.60758145,178.33,178.25,36.86]
[1747951487525,5.60758145,178.33,178.26,2.07350634]
[1747951487727,19.86971836,178.33,178.26,2.07350634]
[1747951488431,5.60758145,178.33,178.25,42.46986488]
[1747951488737,5.60758145,178.33,178.25,36.86]
[1747951489453,19.86971836,178.33,178.25,36.86]
[1747951489649,33.88867198,178.33,178.25,36.86]
[1747951489854,14.40429848,178.32,178.26,2.07276719]
[1747951490557,14.40429848,178.32,178.25,36.86]
[1747951491368,5.60821042,178.31,178.25,36.86]
[1747951496668,5.60758145,178.33,178.25,42.46993791]
[1747951497364,5.60758145,178.33,178.26,2.07271638]
[1747951497955,5.60758145,178.33,178.25,42.46993791]
[1747951499957,5.60758145,178.33,178.26,2.07421935]
[1747951500565,5.60758145,178.33,178.25,42.46993791]
[1747951501228,5.60758145,178.33,178.25,36.86]
[1747951501433,5.60758145,178.33,178.25,42.46998562]
[1747951501669,5.60663825,178.36,178.28,26.0]
[1747951501859,5.60663825,178.36,178.28,59.62]
[1747951502041,5.60663825,178.36,178.29,2.0744386]
[1747951502544,5.60663825,178.36,178.3,2.0744386]
[1747951502737,5.60632393,178.37,178.3,2.0744386]
[1747951503247,5.60632393,178.37,178.29,2.0744386]
[1747951503867,19.62213376,178.37,178.29,2.0744386]
[1747951504954,5.60632393,178.37,178.29,2.0744386]
[1747951505554,5.60632393,178.37,178.3,2.0744386]
[1747951506066,7.27059132,178.38,178.32,26.0]
[1747951506361,5.60609132,178.38,178.32,26.0]
[1747951506563,5.60609132,178.38,178.33,2.0744386]
[1747951507067,19.86822823,178.38,178.33,2.0744386]
[1747951507362,5.60609132,178.38,178.33,2.0744386]
[1747951511472,5.60569538,178.39,178.33,2.0744386]
[1747951513554,5.60506698,178.41,178.33,7.68197998]
[1747951513747,19.61773443,178.41,178.33,35.6944386]
[1747951514051,19.61773443,178.41,178.34,2.0744386]
[1747951514674,19.61773443,178.41,178.33,33.62]
[1747951514675,19.61773443,178.41,178.35,2.0744386]
[1747951515266,19.61773443,178.41,178.33,33.62]
[1747951515662,33.87987134,178.41,178.33,33.62]
[1747951515958,33.87987134,178.41,178.34,2.0741902]
[1747951516788,33.87987134,178.41,178.35,2.0741902]
[1747951517570,33.87987134,178.41,178.34,2.0741902]
[1747951518075,33.87987134,178.41,178.35,2.0741902]
[1747951518681,19.86720389,178.41,178.35,2.0741902]
[1747951518872,5.60506698,178.41,178.36,2.0741902]
[1747951519585,33.87877181,178.42,178.36,28.0741902]
[1747951519769,14.26213691,178.4,178.36,2.0741902]
[1747951519969,14.26213691,178.4,178.34,26.0]
[1747951521685,19.62103374,178.38,178.3,33.6]
[1747951521890,19.62103374,178.38,178.3,59.6]
[1747951522093,0.14216157,178.37,178.3,59.6]
[1747951522263,14.40429848,178.37,178.3,59.6]
[1747951522461,14.40429848,178.37,178.31,2.07522439]
[1747951522678,0.14216157,178.37,178.31,2.07522439]
[1747951523157,0.14216157,178.37,178.32,2.07522439]
[1747951523583,5.60663825,178.36,178.31,2.07522439]
[1747951524457,5.60663825,178.36,178.32,2.07522439]
[1747951525164,19.62103374,178.38,178.32,2.07522439]
[1747951525365,19.62103374,178.38,178.31,2.07522439]
[1747951525985,19.62103374,178.38,178.32,2.07522439]
[1747951526787,19.62103374,178.38,178.33,2.07522439]
[1747951527891,19.62103374,178.38,178.31,2.07522439]
[1747951528383,19.62103374,178.38,178.32,2.07522439]
[1747951529156,19.62103374,178.38,178.33,2.07522439]
[1747951529974,19.62103374,178.38,178.31,2.07522439]
[1747951530590,19.62103374,178.38,178.32,2.07522439]
[1747951531288,5.60600964,178.38,178.33,28.07522439]
[1747951531988,15.89023691,178.43,178.35,26.0]
[1747951532989,19.6166349,178.42,178.36,2.07522439]
[1747951533487,33.87877181,178.42,178.36,2.07522439]
[1747951533688,33.87877181,178.42,178.37,2.07522439]
[1747951533862,14.26213691,178.4,178.37,2.07522439]
[1747951534066,0.14216157,178.41,178.37,2.07522439]
[1747951534067,0.14216157,178.38,178.37,2.07522439]